bitfinex/quotes_BTCUSD_20251217
["timestamp","ask_amount","ask_price","bid_price","bid_amount"]
[1765967020492,0.00037647,86850.0,86849.0,0.16401851]
[1765967020728,0.00142046,86850.0,86849.0,0.02822287]
[1765967020927,0.00142046,86850.0,86849.0,0.00461287]
[1765967021076,0.00142046,86850.0,86849.0,0.03116287]
[1765967021448,0.00142046,86850.0,86849.0,0.06626287]
[1765967021664,0.00142046,86850.0,86849.0,0.07026287]
[1765967021879,0.00142046,86850.0,86849.0,0.13001203]
[1765967022104,0.00142046,86850.0,86849.0,0.12701203]
[1765967022511,0.00142046,86850.0,86849.0,0.35829677]
[1765967022720,0.00142046,86850.0,86849.0,0.3352683]
[1765967022900,0.00142046,86850.0,86849.0,0.3342683]
[1765967023283,0.00142046,86850.0,86849.0,0.3362683]
[1765967024664,0.00142046,86850.0,86849.0,0.3342683]
[1765967024893,0.00142046,86850.0,86849.0,0.3402683]
[1765967031721,0.00142046,86850.0,86849.0,0.3342683]
[1765967031948,0.00142046,86850.0,86849.0,0.3382683]
[1765967040970,0.00142046,86850.0,86849.0,0.06988356]
[1765967041164,0.00142046,86850.0,86849.0,0.004]
[1765967041683,0.00142046,86850.0,86849.0,0.002]
[1765967042093,0.00142046,86850.0,86849.0,0.001]
[1765967042297,0.00142046,86850.0,86843.0,0.02303006]
[1765967042496,0.00037647,86850.0,86844.0,0.06813363]
[1765967043218,0.00037647,86850.0,86844.0,0.0697465]
[1765967043410,0.00037647,86850.0,86845.0,0.02302953]
[1765967043614,0.00037647,86850.0,86849.0,0.002]
[1765967043762,0.00137647,86850.0,86849.0,0.002]
[1765967043972,0.00137647,86850.0,86845.0,0.06112953]
[1765967044170,0.00242046,86850.0,86846.0,0.04029834]
[1765967044376,0.00137647,86850.0,86847.0,0.023029]
[1765967044574,0.00037647,86850.0,86847.0,0.023029]
[1765967047160,0.00037647,86850.0,86844.0,0.00161287]
[1765967049396,0.00037647,86850.0,86837.0,0.01862]
[1765967049626,0.00094911,86847.0,86838.0,0.03606]
[1765967049830,0.25037647,86850.0,86837.0,0.02023287]
[1765967050214,0.25037647,86850.0,86838.0,0.03606]
[1765967050411,0.25037647,86850.0,86839.0,0.01053573]
[1765967051443,0.25137647,86850.0,86839.0,0.01053573]
[1765967053456,0.25237647,86850.0,86839.0,0.01053573]
[1765967055467,0.00237647,86850.0,86839.0,0.01053573]
[1765967055792,0.51654544,86870.0,86840.0,0.03606]
[1765967055957,0.01162458,86868.0,86842.0,0.03606]
[1765967056152,0.01162458,86868.0,86842.0,0.03767287]
[1765967056359,0.24175227,86866.0,86842.0,0.03767287]
[1765967056595,0.0008226,86843.0,86842.0,0.06088287]
[1765967056797,0.0008226,86843.0,86842.0,0.09726496]
[1765967058638,0.25,86840.0,86826.0,0.03080603]
[1765967058954,0.05773905,86851.0,86826.0,0.00161287]
[1765967059165,0.05773905,86851.0,86835.0,0.03606]
[1765967059370,0.05773905,86851.0,86836.0,0.07900332]
[1765967059676,0.28797304,86869.0,86836.0,0.07900332]
[1765967059677,0.05773905,86869.0,86844.0,0.03606]
[1765967059900,0.05773905,86869.0,86845.0,0.05908953]
[1765967060103,0.05773905,86869.0,86845.0,0.0607024]
[1765967060328,0.05773905,86869.0,86846.0,0.03606]
[1765967060534,0.05773905,86869.0,86849.0,0.01862]
[1765967060954,0.34439594,86870.0,86849.0,0.02023287]
[1765967061138,0.59439594,86870.0,86849.0,0.02023287]
[1765967061340,0.00079,86868.0,86849.0,0.02023287]
[1765967062222,0.00079,86868.0,86849.0,0.04326134]
[1765967062427,0.00079,86868.0,86850.0,0.01430573]
[1765967062833,0.00079,86868.0,86851.0,0.03606]
[1765967063031,0.00079,86868.0,86852.0,0.05908767]
[1765967063567,0.00056,86867.0,86850.0,0.0159186]
[1765967063784,0.00056,86867.0,86851.0,0.01343346]
[1765967065190,0.001,86867.0,86851.0,0.01343346]
[1765967065393,0.00045,86866.0,86851.0,0.01343346]
[1765967066057,0.00110723,86852.0,86851.0,0.01343346]
[1765967066576,0.00110723,86852.0,86838.0,0.00461556]
[1765967066947,0.34439594,86861.0,86838.0,0.00461556]
[1765967066948,0.00069608,86839.0,86838.0,0.08391426]
[1765967067090,0.00069608,86839.0,86838.0,0.31422817]
[1765967067296,0.00069608,86839.0,86838.0,0.29119678]
[1765967067635,0.00069608,86839.0,86838.0,0.38206117]
[1765967068416,0.00069608,86839.0,86838.0,0.38406117]
[1765967069140,0.00069608,86839.0,86838.0,0.38506117]
[1765967069299,0.00069608,86839.0,86838.0,0.38406117]
[1765967069655,0.00069608,86839.0,86838.0,0.38606117]
[1765967070943,0.00069608,86839.0,86838.0,0.19680427]
[1765967071208,0.00069608,86839.0,86838.0,0.17877865]
[1765967071379,0.00069608,86839.0,86838.0,0.40909256]
[1765967071537,0.00069608,86839.0,86838.0,0.19691612]
[1765967071923,0.00069608,86839.0,86838.0,0.11968726]
[1765967072132,0.00069608,86839.0,86838.0,0.15374726]
[1765967072532,0.00069608,86839.0,86838.0,0.15574726]
[1765967072735,0.00069608,86839.0,86838.0,0.15374726]
[1765967072938,0.00069608,86839.0,86838.0,0.15474726]
[1765967073145,0.00069608,86839.0,86838.0,0.15274726]
[1765967073548,0.00069608,86839.0,86838.0,0.15374726]
[1765967074049,0.00069608,86839.0,86838.0,0.15274726]
[1765967074548,0.00069608,86839.0,86838.0,0.15474726]
[1765967077134,0.36249801,86860.0,86839.0,0.02568]
[1765967077345,0.00441,86858.0,86840.0,0.05401677]
[1765967077548,0.00025306,86847.0,86840.0,0.05401677]
[1765967078619,0.00025306,86847.0,86839.0,0.00161287]
[1765967078973,0.00025306,86847.0,86839.0,0.02464399]
[1765967080250,0.00025306,86847.0,86840.0,0.001]
[1765967080925,0.00025306,86847.0,86839.0,0.00161287]
[1765967081739,0.00025306,86847.0,86839.0,0.02564399]
[1765967082918,0.00025306,86847.0,86839.0,0.02464399]
[1765967083947,0.00025306,86847.0,86840.0,0.06163327]
[1765967084114,0.00025306,86847.0,86841.0,0.02303059]
[1765967084906,0.00025306,86847.0,86843.0,0.01856]
[1765967085113,0.00025306,86847.0,86844.0,0.03951]
[1765967085276,0.00025306,86847.0,86843.0,0.01856]
[1765967085445,0.00025306,86847.0,86846.0,0.06585]
[1765967086017,0.00025306,86847.0,86846.0,0.06746287]
[1765967086146,0.00025306,86847.0,86846.0,0.09049214]
[1765967087561,0.00025306,86847.0,86846.0,0.09249214]
[1765967087918,0.00025306,86847.0,86846.0,0.06946287]
[1765967088119,0.00025306,86847.0,86846.0,0.14573222]
[1765967089301,0.00025306,86847.0,86846.0,0.00361287]
[1765967089753,0.00331306,86847.0,86846.0,0.00361287]
[1765967090377,0.00025306,86847.0,86846.0,0.06846287]
[1765967091185,0.00025306,86847.0,86846.0,0.06746287]
[1765967092587,0.00025306,86847.0,86846.0,0.06846287]
[1765967092946,0.00025306,86847.0,86846.0,0.10833673]
[1765967093794,0.00025306,86847.0,86846.0,0.131366]
[1765967096209,0.00025306,86847.0,86846.0,0.3616587]
[1765967096439,0.00025306,86847.0,86846.0,0.33862943]
[1765967096597,0.00025306,86847.0,86846.0,0.10833673]
[1765967096795,0.00025306,86847.0,86846.0,0.091856]
[1765967097233,0.00025306,86847.0,86846.0,0.130366]
[1765967097663,0.00025306,86847.0,86846.0,0.132366]
[1765967098849,0.00025306,86847.0,86846.0,0.131366]
[1765967099067,0.00025306,86847.0,86846.0,0.132366]
[1765967099666,0.33425557,86870.0,86847.0,0.02634]
[1765967099841,0.33425557,86870.0,86848.0,0.10078571]
[1765967100042,0.33425557,86870.0,86850.0,0.35534751]
[1765967100243,0.05773905,86872.0,86854.0,0.06585]
[1765967100244,0.00025303,86855.0,86854.0,0.06585]
[1765967100445,0.00025303,86855.0,86854.0,0.06746287]
[1765967101282,0.00025303,86855.0,86854.0,0.02795287]
[1765967101790,0.00025303,86855.0,86848.0,0.03090975]
[1765967101997,0.00025303,86855.0,86846.0,0.03090975]
[1765967102173,0.00025303,86855.0,86847.0,0.00720786]
[1765967103744,0.00125303,86855.0,86847.0,0.00720786]
[1765967103946,0.00225303,86855.0,86840.0,0.00161287]
[1765967104142,0.00125303,86855.0,86840.0,0.00161287]
[1765967104552,0.00225303,86855.0,86840.0,0.00161287]
[1765967104720,0.00125303,86855.0,86840.0,0.00161287]
[1765967104919,0.00125303,86855.0,86841.0,0.01096491]
[1765967105128,0.00225303,86855.0,86841.0,0.01096491]
[1765967105525,0.00125303,86855.0,86841.0,0.01096491]
[1765967106273,0.00225303,86855.0,86841.0,0.01096491]
[1765967106629,0.00125303,86855.0,86841.0,0.01096491]
[1765967106836,0.00225303,86855.0,86842.0,0.0101994]
[1765967107044,0.00125303,86855.0,86842.0,0.0101994]
[1765967107397,0.00125303,86855.0,86844.0,0.0377]
[1765967107398,0.00225303,86855.0,86844.0,0.0377]
[1765967107557,0.00225303,86855.0,86845.0,0.06072953]
[1765967107718,0.00125303,86855.0,86846.0,0.06935792]
[1765967107919,0.00125303,86855.0,86847.0,0.023029]
[1765967108238,0.00025303,86855.0,86847.0,0.023029]
[1765967108636,0.00125303,86855.0,86847.0,0.023029]
[1765967109256,0.00225303,86855.0,86847.0,0.023029]
[1765967109483,0.00225303,86855.0,86848.0,0.01351089]
[1765967109640,0.00225303,86855.0,86849.0,0.02302847]
[1765967109840,0.00025303,86855.0,86849.0,0.02302847]
[1765967110097,0.00125303,86855.0,86849.0,0.02302847]
[1765967110297,0.00225303,86855.0,86849.0,0.02302847]
[1765967110538,0.00025303,86855.0,86849.0,0.02302847]
[1765967110857,0.00125303,86855.0,86850.0,0.0230282]
[1765967111002,0.00225303,86855.0,86850.0,0.0230282]
[1765967111203,0.00125303,86855.0,86850.0,0.0230282]
[1765967111857,0.00125303,86855.0,86846.0,0.02464214]
[1765967112060,0.00125303,86855.0,86847.0,0.07915963]
[1765967112365,0.00025303,86855.0,86848.0,0.02302873]
[1765967113605,0.00025303,86855.0,86849.0,0.05784]
[1765967113807,0.00025303,86855.0,86851.0,0.0377]
[1765967114021,0.00025303,86855.0,86853.0,0.0377]
[1765967114258,0.00025303,86855.0,86852.0,0.02302767]
[1765967114849,0.00025303,86855.0,86854.0,0.06386]
[1765967115054,0.00025303,86855.0,86854.0,0.02616]
[1765967116246,0.00025303,86855.0,86854.0,0.08511557]
[1765967116466,0.00025303,86855.0,86854.0,0.10814271]
[1765967117085,0.00025303,86855.0,86854.0,0.08850001]
[1765967117984,0.00025303,86855.0,86854.0,0.00161287]
[1765967118844,0.00025303,86855.0,86854.0,0.02777287]
[1765967119043,0.00025303,86855.0,86854.0,0.00161287]
[1765967119365,0.00025303,86855.0,86845.0,0.03090975]
[1765967119564,0.00025303,86855.0,86846.0,0.0786003]
[1765967119737,0.00025303,86855.0,86846.0,0.08021317]
[1765967119938,0.00025303,86855.0,86846.0,0.04930342]
[1765967120546,0.00025303,86855.0,86846.0,0.00161287]
[1765967121361,0.00025303,86855.0,86836.0,0.03128622]
[1765967121362,0.25,86850.0,86836.0,0.03128622]
[1765967121567,0.00025303,86855.0,86836.0,0.00037647]
[1765967121780,0.00025303,86855.0,86836.0,0.00198934]
[1765967121981,0.00025303,86855.0,86841.0,0.02014]
[1765967122292,0.01151132,86871.0,86842.0,0.0377]
[1765967122493,0.01151132,86871.0,86843.0,0.02303006]
[1765967122494,0.01151158,86869.0,86843.0,0.02303006]
[1765967122714,0.01151185,86867.0,86843.0,0.02464293]
[1765967122916,0.24175887,86864.0,86843.0,0.00161287]
[1765967123058,0.58671894,86870.0,86843.0,0.00161287]
[1765967123059,0.002,86855.0,86844.0,0.04320566]
[1765967123257,0.003,86855.0,86844.0,0.04481853]
[1765967123440,0.00285,86863.0,86845.0,0.02302953]
[1765967123647,0.00285,86863.0,86846.0,0.0377]
[1765967123941,0.004,86869.0,86850.0,0.0377]
[1765967124170,0.00285,86868.0,86850.0,0.0230282]
[1765967124370,0.001,86855.0,86850.0,0.0230282]
[1765967124577,0.001,86855.0,86850.0,0.0607282]
[1765967124770,0.00285,86868.0,86850.0,0.0607282]
[1765967124977,0.00285,86868.0,86851.0,0.0173079]
[1765967125419,0.001,86863.0,86850.0,0.0607282]
[1765967125825,0.00285,86868.0,86850.0,0.0607282]
[1765967126046,0.002,86869.0,86850.0,0.0230282]
[1765967126254,0.00259,86867.0,86846.0,0.00161287]
[1765967126442,0.00259,86867.0,86847.0,0.04624081]
[1765967126584,0.00247,86866.0,86847.0,0.04624081]
[1765967126789,0.00247,86862.0,86847.0,0.04624081]
[1765967127307,0.00247,86862.0,86847.0,0.04785368]
[1765967127502,0.002,86867.0,86850.0,0.37441894]
[1765967127730,0.00234,86867.0,86851.0,0.02302794]
[1765967127926,0.001,86862.0,86851.0,0.02464081]
[1765967128124,0.001,86862.0,86851.0,0.06234081]
[1765967128911,0.001,86862.0,86861.0,0.02014]
[1765967129116,0.00221,86870.0,86856.0,0.02014]
[1765967129385,0.000253,86863.0,86860.0,0.33671894]
[1765967129561,0.002,86862.0,86856.0,0.02175287]
[1765967129762,0.001,86862.0,86857.0,0.06072635]
[1765967129968,0.001,86862.0,86803.0,0.10413934]
[1765967129969,0.000253,86863.0,86845.0,0.03090975]
[1765967130167,0.01151304,86858.0,86839.0,0.03090975]
[1765967130367,0.00196,86856.0,86840.0,0.33671894]
[1765967130775,0.00196,86856.0,86836.0,0.00198934]
[1765967131109,0.01151291,86859.0,86837.0,0.0447598]
[1765967131110,0.24177437,86858.0,86837.0,0.0447598]
[1765967131331,0.00196,86856.0,86837.0,0.04637267]
[1765967132405,0.00196,86856.0,86838.0,0.03090975]
[1765967132677,0.00196,86856.0,86838.0,0.03252262]
[1765967132853,0.001,86856.0,86838.0,0.03252262]
[1765967133074,0.00171,86855.0,86839.0,0.01968078]
[1765967133293,0.00171,86855.0,86839.0,0.02129365]
[1765967134324,0.001,86856.0,86841.0,0.05784]
[1765967134534,0.001,86855.0,86842.0,0.04023]
[1765967134692,0.001,86855.0,86842.0,0.0246432]
[1765967134899,0.001,86855.0,86843.0,0.09025607]
[1765967135067,0.002,86855.0,86844.0,0.0230298]
[1765967135481,0.001,86855.0,86844.0,0.0230298]
[1765967135682,0.00159,86860.0,86844.0,0.0230298]
[1765967135907,0.001,86855.0,86844.0,0.02464267]
[1765967136110,0.001,86855.0,86845.0,0.04821182]
[1765967136310,0.00134,86857.0,86845.0,0.04821182]
[1765967136537,0.001,86855.0,86845.0,0.04821182]
[1765967136739,0.002,86855.0,86845.0,0.04821182]
[1765967137470,0.001,86855.0,86845.0,0.04821182]
[1765967137677,0.001,86855.0,86846.0,0.0480304]
[1765967137678,0.002,86855.0,86846.0,0.0480304]
[1765967138034,0.002,86855.0,86844.0,0.02464267]
[1765967138240,0.002,86855.0,86844.0,0.00161287]
[1765967138555,0.001,86855.0,86844.0,0.00161287]
[1765967139090,0.00097,86856.0,86844.0,0.00161287]
[1765967139269,0.001,86855.0,86844.0,0.00161287]
[1765967139487,0.00097,86856.0,86845.0,0.00953737]
[1765967139702,0.001,86855.0,86845.0,0.00953737]
[1765967140013,0.002,86855.0,86845.0,0.00953737]
[1765967140415,0.001,86855.0,86845.0,0.00953737]
[1765967140622,0.00097,86856.0,86845.0,0.00953737]
[1765967140762,0.00097,86856.0,86846.0,0.01049106]
[1765967141621,0.001,86856.0,86846.0,0.01049106]
[1765967142284,0.0016,86856.0,86846.0,0.01049106]
[1765967142485,0.001,86855.0,86846.0,0.01049106]
[1765967142919,0.0006,86856.0,86846.0,0.01049106]
[1765967143093,0.0006,86856.0,86847.0,0.04622424]
[1765967143094,0.0016,86856.0,86847.0,0.04622424]
[1765967143466,0.0006,86856.0,86847.0,0.04622424]
[1765967143671,0.001,86855.0,86847.0,0.04622424]
[1765967143995,0.0016,86856.0,86847.0,0.04622424]
[1765967144364,0.0026,86856.0,86846.0,0.01049106]
[1765967144751,0.001,86856.0,86846.0,0.01210393]
[1765967144953,0.001,86856.0,86847.0,0.023029]
[1765967145192,0.002,86856.0,86847.0,0.023029]
[1765967145597,0.000253,86863.0,86847.0,0.023029]
[1765967145774,0.00012,86862.0,86847.0,0.02464187]
[1765967145974,0.001,86855.0,86851.0,0.02063]
[1765967146171,0.001,86856.0,86853.0,0.03934]
[1765967146408,0.000253,86863.0,86854.0,0.06236714]
[1765967147292,0.001253,86863.0,86854.0,0.06398001]
[1765967147478,0.001253,86863.0,86855.0,0.08807716]
[1765967147686,0.001253,86863.0,86857.0,0.02063]
[1765967148748,0.002253,86863.0,86857.0,0.02063]
[1765967149007,0.000253,86863.0,86857.0,0.02063]
[1765967149403,0.001253,86863.0,86856.0,0.02302661]
[1765967149628,0.001253,86863.0,86855.0,0.00161287]
[1765967149795,0.000253,86863.0,86855.0,0.00161287]
[1765967149995,0.000253,86863.0,86845.0,0.09327928]
[1765967150200,0.001253,86863.0,86846.0,0.01948989]
[1765967150767,0.000253,86863.0,86846.0,0.01948989]
[1765967150961,0.001253,86863.0,86846.0,0.01948989]
[1765967152314,0.001253,86863.0,86846.0,0.05201251]
[1765967152315,0.000253,86863.0,86846.0,0.05201251]
[1765967152749,0.001253,86863.0,86846.0,0.05201251]
[1765967153011,0.001253,86863.0,86847.0,0.10166489]
[1765967153247,0.001253,86863.0,86847.0,0.10327776]
[1765967154027,0.000253,86863.0,86847.0,0.10327776]
[1765967154227,0.001253,86863.0,86847.0,0.10327776]
[1765967155912,0.001253,86863.0,86848.0,0.03934]
[1765967156112,0.001253,86863.0,86848.0,0.04095287]
[1765967156667,0.000253,86863.0,86848.0,0.04095287]
[1765967157234,0.001253,86863.0,86848.0,0.04095287]
[1765967161583,0.001253,86863.0,86848.0,0.00161287]
[1765967161831,0.001253,86863.0,86848.0,0.01517909]
[1765967165559,0.001253,86863.0,86851.0,0.01981]
[1765967165763,0.001253,86863.0,86852.0,0.02302767]
[1765967166339,0.001253,86863.0,86848.0,0.01517909]
[1765967166702,0.000253,86863.0,86848.0,0.01517909]
[1765967167690,0.000253,86863.0,86849.0,0.01279286]
[1765967167878,0.01151264,86861.0,86849.0,0.01279286]
[1765967168077,0.57845382,86860.0,86839.0,0.05059053]
[1765967168299,0.001253,86863.0,86841.0,0.03090975]
[1765967168507,0.24176492,86862.0,86841.0,0.00161287]
[1765967168852,0.24177708,86857.0,86841.0,0.01917194]
[1765967169051,0.0115133,86856.0,86841.0,0.01917194]
[1765967169171,0.01151357,86854.0,86841.0,0.01917194]
[1765967169371,0.24178324,86855.0,86841.0,0.01917194]
[1765967169647,0.24178003,86856.0,86841.0,0.00161287]
[1765967169833,0.01151344,86855.0,86841.0,0.00161287]
[1765967170195,0.0125133,86856.0,86841.0,0.00161287]
[1765967170816,0.01151357,86854.0,86841.0,0.00161287]
[1765967171018,0.23027431,86853.0,86841.0,0.00161287]
[1765967171217,0.001,86854.0,86841.0,0.00161287]
[1765967172210,0.24177746,86857.0,86842.0,0.00908891]
[1765967172335,0.05773905,86858.0,86842.0,0.00908891]
[1765967173581,0.05873905,86858.0,86842.0,0.00908891]
[1765967174264,0.001,86854.0,86842.0,0.00908891]
[1765967174662,0.0115133,86856.0,86842.0,0.00908891]
[1765967174877,0.24177984,86856.0,86842.0,0.00908891]
[1765967175042,0.30151321,86858.0,86842.0,0.00908891]
[1765967175210,0.01151317,86857.0,86843.0,0.00690683]
[1765967175414,0.07125209,86858.0,86843.0,0.00690683]
[1765967175415,0.001,86858.0,86844.0,0.03818]
[1765967175615,0.001,86858.0,86846.0,0.03818]
[1765967175810,0.001,86856.0,86847.0,0.08552934]
[1765967177557,0.01151171,86868.0,86847.0,0.08552934]
[1765967177731,0.33668527,86870.0,86848.0,0.06120873]
[1765967177944,0.001,86858.0,86848.0,0.0628216]
[1765967178185,0.001,86858.0,86850.0,0.01981]
[1765967178406,0.33668527,86870.0,86850.0,0.01981]
[1765967178809,0.001253,86863.0,86852.0,0.03818]
[1765967179153,0.002253,86863.0,86853.0,0.02302741]
[1765967179370,0.001253,86863.0,86853.0,0.02302741]
[1765967179492,0.002253,86863.0,86853.0,0.02464028]
[1765967179911,0.001253,86863.0,86853.0,0.07029815]
[1765967180118,0.000253,86863.0,86853.0,0.07029815]
[1765967180536,0.001253,86863.0,86853.0,0.07029815]
[1765967181134,0.000253,86863.0,86853.0,0.07029815]
[1765967181498,0.001253,86863.0,86854.0,0.03818]
[1765967181703,0.001253,86863.0,86855.0,0.02302688]
[1765967182083,0.001253,86863.0,86855.0,0.02463975]
[1765967183719,0.000253,86863.0,86855.0,0.02463975]
[1765967184072,0.001253,86863.0,86857.0,0.01981]
[1765967184256,0.001253,86863.0,86857.0,0.05799]
[1765967184593,0.000253,86863.0,86857.0,0.05799]
[1765967184898,0.001253,86863.0,86857.0,0.05799]
[1765967185321,0.000253,86863.0,86857.0,0.05799]
[1765967185536,0.000253,86863.0,86857.0,0.1157524]
[1765967185815,0.001253,86863.0,86858.0,0.03818]
[1765967186032,0.001253,86863.0,86859.0,0.03818]
[1765967186243,0.001253,86863.0,86859.0,0.03979287]
[1765967186396,0.001253,86863.0,86860.0,0.05920474]
[1765967186638,0.001253,86863.0,86861.0,0.03818]
[1765967187392,0.001253,86863.0,86862.0,0.06228]
[1765967187595,0.001253,86863.0,86862.0,0.06389287]
[1765967187786,0.000253,86863.0,86862.0,0.06389287]
[1765967188190,0.001253,86863.0,86862.0,0.06389287]
[1765967188387,0.001253,86863.0,86862.0,0.02571287]
[1765967188666,0.000253,86863.0,86862.0,0.02571287]
[1765967188878,0.000253,86863.0,86862.0,0.06389287]
[1765967189049,0.001253,86863.0,86862.0,0.06389287]
[1765967189658,0.001253,86863.0,86862.0,0.11277836]
[1765967190744,0.000253,86863.0,86862.0,0.11277836]
[1765967191166,0.000253,86863.0,86862.0,0.06389287]
[1765967192047,0.000253,86863.0,86862.0,0.02571287]
[1765967192861,0.000253,86863.0,86862.0,0.04873789]
[1765967194952,0.000253,86863.0,86862.0,0.08514789]
[1765967195532,0.01150933,86886.0,86862.0,0.08514789]
[1765967195738,0.33664258,86880.0,86863.0,0.01952583]
[1765967195956,0.33664258,86880.0,86863.0,0.0211387]
[1765967196290,0.00025296,86871.0,86865.0,0.03641]
[1765967196482,0.00025296,86871.0,86865.0,0.03802287]
[1765967196636,0.00025296,86871.0,86866.0,0.03833]
[1765967196868,0.00033961,86871.0,86865.0,0.00161287]
[1765967197046,0.00033961,86871.0,86865.0,0.04514847]
[1765967197850,0.00033961,86871.0,86866.0,0.02302396]
[1765967198109,0.00033961,86871.0,86867.0,0.03833]
[1765967198325,0.00033961,86871.0,86870.0,0.04347]
[1765967198607,0.00033961,86871.0,86870.0,0.0818]
[1765967199905,0.00033961,86871.0,86870.0,0.1021847]
[1765967200099,0.00033961,86871.0,86870.0,0.1252076]
[1765967200886,0.00033961,86871.0,86870.0,0.35543667]
[1765967201185,0.00033961,86871.0,86870.0,0.1021847]
[1765967201392,0.00033961,86871.0,86870.0,0.1262076]
[1765967201946,0.00033961,86871.0,86870.0,0.35643667]
[1765967202161,0.00033961,86871.0,86870.0,0.33241377]
[1765967202359,0.00033961,86871.0,86870.0,0.1041847]
[1765967202560,0.00033961,86871.0,86870.0,0.35943667]
[1765967202726,0.00033961,86871.0,86870.0,0.33641377]
[1765967203525,0.00033961,86871.0,86870.0,0.1061847]
[1765967203725,0.00033961,86871.0,86870.0,0.35943667]
[1765967203917,0.00033961,86871.0,86870.0,0.33641377]
[1765967205409,0.00033961,86871.0,86870.0,0.36719774]
[1765967205979,0.00033961,86871.0,86870.0,0.33641377]
[1765967210525,0.00033961,86871.0,86870.0,0.37738016]
[1765967210807,0.00033961,86871.0,86870.0,0.33641377]
[1765967211162,0.00033961,86871.0,86870.0,0.37737438]
[1765967211372,0.00033961,86871.0,86870.0,0.33641377]
[1765967212189,0.00033961,86871.0,86870.0,0.37101319]
[1765967217515,0.00033961,86871.0,86870.0,0.28921319]
[1765967218431,0.00033961,86871.0,86870.0,0.28521319]
[1765967218588,0.00033961,86871.0,86870.0,0.28921319]
[1765967220023,0.03003961,86899.0,86889.0,0.33664258]
[1765967220224,0.03012624,86899.0,86890.0,0.03366426]
[1765967220948,0.03012624,86899.0,86881.0,0.02301999]
[1765967221183,0.03112624,86899.0,86880.0,0.33633729]
[1765967221357,0.00034776,86882.0,86880.0,0.33633729]
[1765967221562,0.03012624,86899.0,86872.0,0.33633729]
[1765967221762,0.03112624,86899.0,86880.0,0.33633729]
[1765967221986,0.03112624,86899.0,86881.0,0.03363373]
[1765967222392,0.03212624,86899.0,86881.0,0.03363373]
[1765967223200,0.03112624,86899.0,86881.0,0.03363373]
[1765967223616,0.03312624,86899.0,86881.0,0.03363373]
[1765967223997,0.011508,86896.0,86881.0,0.03363373]
[1765967224208,0.01150787,86897.0,86880.0,0.33633729]
[1765967224522,0.01150774,86898.0,86880.0,0.33633729]
[1765967224723,0.27478823,86899.0,86880.0,0.33633729]
[1765967224931,0.03212624,86899.0,86880.0,0.33633729]
[1765967225088,0.001,86896.0,86881.0,0.03363373]
[1765967225493,0.03012624,86899.0,86881.0,0.03363373]
[1765967225859,0.001,86898.0,86889.0,0.33633729]
[1765967226005,0.03012624,86899.0,86889.0,0.33633729]
[1765967226207,0.03012624,86899.0,86889.0,0.03363373]
[1765967226549,0.03012624,86899.0,86889.0,0.33633729]
[1765967226705,0.002,86896.0,86889.0,0.33633729]
[1765967226905,0.002,86896.0,86886.0,0.33633729]
[1765967227135,0.03012624,86899.0,86886.0,0.33633729]
[1765967227331,0.03012624,86899.0,86889.0,0.33633729]
[1765967227535,0.001,86896.0,86890.0,0.03363373]
[1765967227714,0.03112624,86899.0,86889.0,0.33633729]
[1765967227913,0.03012624,86899.0,86889.0,0.33633729]
[1765967228330,0.03112624,86899.0,86889.0,0.33633729]
[1765967229324,0.03112624,86899.0,86890.0,0.0230176]
[1765967229571,0.03112624,86899.0,86889.0,0.33633729]
[1765967229859,0.03012624,86899.0,86890.0,0.03363373]
[1765967230473,0.03112624,86899.0,86890.0,0.03363373]
[1765967230830,0.03212624,86899.0,86890.0,0.03363373]
[1765967231056,0.03012624,86899.0,86890.0,0.03363373]
[1765967231253,0.03112624,86899.0,86890.0,0.03363373]
[1765967231457,0.03212624,86899.0,86890.0,0.03363373]
[1765967233357,0.03212624,86899.0,86891.0,0.06001444]
[1765967233709,0.03212624,86899.0,86892.0,0.0178]
[1765967233920,0.03212624,86899.0,86893.0,0.05459]
[1765967234131,0.03112624,86899.0,86893.0,0.05459]
[1765967234528,0.03112624,86899.0,86893.0,0.07858]
[1765967234529,0.00072703,86894.0,86893.0,0.07858]
[1765967236699,0.00072703,86894.0,86893.0,0.04179]
[1765967237664,0.00072703,86894.0,86893.0,0.053208]
[1765967239401,0.00072703,86894.0,86893.0,0.011418]
[1765967240967,0.00072703,86894.0,86893.0,0.089998]
[1765967241189,0.00072703,86894.0,86881.0,0.27695586]
[1765967241190,0.00072703,86894.0,86881.0,0.0352466]
[1765967241480,0.0115084,86893.0,86881.0,0.00161287]
[1765967241650,0.01150959,86884.0,86864.0,0.04852914]
[1765967241870,0.01150986,86882.0,86861.0,0.03072914]
[1765967242076,0.3479894,86880.0,86858.0,0.03072914]
[1765967242383,0.58647928,86880.0,86856.0,0.0178]
[1765967242573,0.01151145,86870.0,86853.0,0.03679]
[1765967242777,0.01151145,86870.0,86853.0,0.03840287]
[1765967242986,0.01151158,86869.0,86853.0,0.03840287]
[1765967243209,0.01151158,86869.0,86854.0,0.04412113]
[1765967243210,0.01151198,86866.0,86854.0,0.04412113]
[1765967243418,0.0311047,86883.0,86853.0,0.00161287]
[1765967243419,0.01151238,86863.0,86853.0,0.00161287]
[1765967243616,0.01151238,86863.0,86840.0,0.36720842]
[1765967243617,0.24177181,86859.0,86840.0,0.33647928]
[1765967243819,0.24177181,86859.0,86853.0,8.665e-05]
[1765967244019,0.01151304,86858.0,86853.0,8.665e-05]
[1765967244443,0.01151277,86860.0,86853.0,8.665e-05]
[1765967244763,0.001,86859.0,86853.0,8.665e-05]
[1765967245220,0.001,86858.0,86853.0,8.665e-05]
[1765967246407,0.001,86859.0,86853.0,8.665e-05]
[1765967246763,0.002,86859.0,86853.0,8.665e-05]
[1765967246969,0.001,86859.0,86853.0,8.665e-05]
[1765967247093,0.001,86860.0,86853.0,8.665e-05]
[1765967247296,0.001,86858.0,86853.0,8.665e-05]
[1765967247711,0.01151224,86864.0,86853.0,8.665e-05]
[1765967247902,0.002,86859.0,86853.0,8.665e-05]
[1765967248299,0.001,86859.0,86853.0,8.665e-05]
[1765967248566,0.24175522,86865.0,86853.0,8.665e-05]
[1765967249053,0.24275818,86864.0,86853.0,8.665e-05]
[1765967249272,0.01151238,86863.0,86853.0,8.665e-05]
[1765967249707,0.001,86858.0,86853.0,8.665e-05]
[1765967249840,0.01151238,86863.0,86853.0,8.665e-05]
[1765967250061,0.01151277,86860.0,86853.0,8.665e-05]
[1765967250839,0.001,86858.0,86853.0,8.665e-05]
[1765967251043,0.001,86859.0,86853.0,8.665e-05]
[1765967251264,0.01151264,86861.0,86853.0,8.665e-05]
[1765967251614,0.002,86860.0,86853.0,8.665e-05]
[1765967252382,0.002,86860.0,86853.0,0.03687665]